bitfinex/quotes_BTCUSD_20250115
["timestamp","ask_amount","ask_price","bid_price","bid_amount"]
[1736951074019,0.00096022,99188.0,99187.0,0.10422692]
[1736951074249,0.00096022,99188.0,99187.0,0.11022692]
[1736951074250,0.00086982,99188.0,99187.0,0.11022692]
[1736951074391,0.00086982,99188.0,99187.0,0.10422692]
[1736951075184,0.00086982,99188.0,99187.0,0.255235]
[1736951075409,0.00086982,99188.0,99187.0,0.25522692]
[1736951075609,0.00086982,99188.0,99187.0,0.35522692]
[1736951075832,0.00086982,99188.0,99187.0,0.10422692]
[1736951076068,9.7e-07,99201.0,99200.0,0.401612]
[1736951076206,4e-07,99209.0,99208.0,0.551596]
[1736951076409,0.0001,99229.0,99219.0,0.15]
[1736951076610,0.0001,99229.0,99228.0,0.351556]
[1736951076611,0.00059892,99229.0,99228.0,0.351556]
[1736951076957,0.00059892,99229.0,99228.0,0.78214292]
[1736951077328,0.00059892,99229.0,99228.0,0.77418292]
[1736951077532,0.00059892,99229.0,99228.0,0.78214292]
[1736951077731,0.00059892,99229.0,99228.0,0.67418292]
[1736951077973,0.00059892,99229.0,99228.0,0.68214292]
[1736951078184,0.00059892,99229.0,99228.0,0.67418292]
[1736951078394,0.00059892,99229.0,99228.0,0.50488292]
[1736951078598,0.00059892,99229.0,99228.0,0.46478292]
[1736951079720,0.00059892,99229.0,99228.0,0.47078292]
[1736951079931,0.00059892,99229.0,99228.0,0.32078292]
[1736951080369,0.00059892,99229.0,99228.0,0.015]
[1736951081165,0.06626831,99229.0,99228.0,0.006]
[1736951081322,0.02359892,99229.0,99228.0,0.006]
[1736951081524,0.02359892,99229.0,99228.0,0.005]
[1736951081732,0.02359892,99229.0,99209.0,0.201592]
[1736951081733,0.023,99228.0,99209.0,0.201592]
[1736951081937,0.224574,99219.0,99205.0,0.201602]
[1736951082141,0.023,99219.0,99188.0,0.08867722]
[1736951082341,0.224594,99209.0,99189.0,0.10422692]
[1736951082553,0.224594,99209.0,99194.0,0.201623]
[1736951082754,0.17594727,99220.0,99198.0,0.201615]
[1736951083012,0.00059892,99229.0,99199.0,0.10422692]
[1736951083263,0.201556,99228.0,99200.0,0.15]
[1736951083457,0.201556,99228.0,99213.0,0.201585]
[1736951083717,0.023,99222.0,99213.0,0.201585]
[1736951084772,0.201566,99223.0,99209.0,0.201592]
[1736951084983,0.023,99222.0,99209.0,0.201592]
[1736951085388,0.023,99222.0,99213.0,0.003]
[1736951085788,0.023,99226.0,99213.0,0.205584]
[1736951085989,0.023,99226.0,99221.0,0.201568]
[1736951086190,0.0008546,99228.0,99214.0,0.201584]
[1736951086191,0.0008546,99228.0,99225.0,0.201561]
[1736951086395,0.0008546,99228.0,99227.0,0.351558]
[1736951086596,0.0008546,99228.0,99227.0,2.05578492]
[1736951086797,0.0008546,99228.0,99227.0,2.15578492]
[1736951087201,6e-07,99228.0,99227.0,2.15578492]
[1736951087399,5.2e-07,99229.0,99228.0,0.35]
[1736951087603,8.2e-07,99241.0,99240.0,0.551531]
[1736951087810,3.7e-07,99241.0,99240.0,0.70445792]
[1736951087982,3.7e-07,99241.0,99240.0,0.74455792]
[1736951089145,3.7e-07,99241.0,99240.0,0.70385792]
[1736951089370,3.7e-07,99241.0,99240.0,0.60385792]
[1736951089779,3.7e-07,99241.0,99240.0,0.50385792]
[1736951089953,3.7e-07,99241.0,99240.0,0.49585792]
[1736951090340,3.7e-07,99241.0,99240.0,0.69585792]
[1736951090779,3.7e-07,99241.0,99240.0,0.70485792]
[1736951090982,3.7e-07,99241.0,99240.0,0.69585792]
[1736951091402,3.7e-07,99241.0,99240.0,0.61285792]
[1736951091602,3.7e-07,99241.0,99240.0,0.70385792]
[1736951091825,3.7e-07,99241.0,99240.0,0.49585792]
[1736951092063,3.7e-07,99241.0,99240.0,0.35485792]
[1736951092250,3.7e-07,99241.0,99240.0,0.31175792]
[1736951092655,3.7e-07,99241.0,99240.0,0.46175792]
[1736951092866,3.7e-07,99241.0,99240.0,0.45575792]
[1736951093279,3.7e-07,99241.0,99240.0,0.46075792]
[1736951093701,3.7e-07,99241.0,99240.0,0.46975792]
[1736951093892,3.7e-07,99241.0,99240.0,0.46075792]
[1736951094123,3.7e-07,99241.0,99240.0,0.46975792]
[1736951094398,3.7e-07,99241.0,99240.0,0.46075792]
[1736951094806,3.7e-07,99241.0,99240.0,0.46975792]
[1736951095012,3.7e-07,99241.0,99240.0,0.45575792]
[1736951095362,3.7e-07,99241.0,99240.0,0.47075792]
[1736951095794,3.7e-07,99241.0,99240.0,0.46475792]
[1736951096003,3.7e-07,99241.0,99240.0,0.46875792]
[1736951096654,3.7e-07,99241.0,99240.0,0.45575792]
[1736951096849,0.00085497,99241.0,99240.0,0.45975792]
[1736951097232,0.00085497,99241.0,99240.0,0.30975792]
[1736951097442,0.00085497,99241.0,99240.0,0.31875792]
[1736951097843,0.00085497,99241.0,99240.0,0.30975792]
[1736951098047,0.00085497,99241.0,99240.0,0.31875792]
[1736951098642,0.00085497,99241.0,99240.0,0.30575792]
[1736951098845,0.00085497,99241.0,99240.0,7.30575792]
[1736951099061,0.00085497,99241.0,99240.0,7.46075792]
[1736951099476,0.00085497,99241.0,99240.0,7.45575792]
[1736951099852,0.00085497,99241.0,99240.0,7.46575792]
[1736951100263,0.00085497,99241.0,99240.0,7.46375792]
[1736951100602,0.00085497,99241.0,99240.0,7.45875792]
[1736951100989,0.00085497,99241.0,99240.0,7.46775792]
[1736951101143,0.00085497,99241.0,99240.0,7.45875792]
[1736951101556,0.00085497,99241.0,99240.0,7.46675792]
[1736951101760,0.00085497,99241.0,99240.0,7.46375792]
[1736951102182,0.00085497,99241.0,99240.0,7.46575792]
[1736951102336,0.00085497,99241.0,99240.0,7.4653616]
[1736951102538,0.07855497,99241.0,99240.0,7.01]
[1736951102738,0.07855497,99241.0,99240.0,7.008]
[1736951102739,0.10155497,99241.0,99240.0,7.008]
[1736951103126,0.10155497,99241.0,99240.0,7.0]
[1736951103259,0.10155497,99241.0,99240.0,7.005]
[1736951103685,0.10155497,99241.0,99240.0,7.009]
[1736951103891,0.10155497,99241.0,99240.0,7.0]
[1736951104932,0.10155497,99241.0,99240.0,7.001]
[1736951104933,0.30308397,99241.0,99240.0,7.001]
[1736951105529,0.30308397,99241.0,99240.0,7.002]
[1736951106129,0.30308397,99241.0,99240.0,7.003]
[1736951106535,0.00085497,99241.0,99240.0,7.002]
[1736951106735,0.00085497,99241.0,99240.0,7.0]
[1736951107138,0.00085497,99241.0,99240.0,7.25422692]
[1736951107549,0.00085497,99241.0,99240.0,7.35422692]
[1736951107977,0.00085497,99241.0,99240.0,7.2645163]
[1736951108177,0.00085497,99241.0,99240.0,8.8645163]
[1736951108357,0.00085497,99241.0,99240.0,7.3725163]
[1736951108572,0.00085497,99241.0,99240.0,7.3645163]
[1736951108944,0.00085497,99241.0,99240.0,7.35422692]
[1736951109146,0.00085497,99241.0,99240.0,7.25422692]
[1736951109391,0.00085497,99241.0,99240.0,7.35622692]
[1736951109608,0.00085497,99241.0,99240.0,7.45622692]
[1736951109815,0.00085497,99241.0,99240.0,7.25422692]
[1736951109969,0.00085497,99241.0,99240.0,7.26322692]
[1736951110376,0.00085497,99241.0,99240.0,7.26822692]
[1736951110773,0.00085497,99241.0,99240.0,7.25922692]
[1736951110988,0.00085497,99241.0,99240.0,7.26822692]
[1736951111402,0.00085497,99241.0,99240.0,7.10922692]
[1736951111804,0.00085497,99241.0,99240.0,7.11822692]
[1736951112272,0.00085497,99241.0,99240.0,7.11322692]
[1736951112608,0.00085497,99241.0,99240.0,7.11822692]
[1736951112830,0.00085497,99241.0,99240.0,7.014]
[1736951113029,0.02385497,99241.0,99240.0,7.009]
[1736951113228,0.02385497,99241.0,99240.0,7.0]
[1736951113433,0.02385497,99241.0,99240.0,7.013]
[1736951113856,0.02385497,99241.0,99240.0,7.0]
[1736951114055,0.02385497,99241.0,99240.0,7.009]
[1736951114316,0.12808189,99241.0,99240.0,7.0]
[1736951114839,0.12808189,99241.0,99240.0,7.003]
[1736951115165,0.13849177,99241.0,99240.0,7.005]
[1736951115611,0.13849177,99241.0,99240.0,7.0]
[1736951116057,0.12808189,99241.0,99240.0,7.0]
[1736951116267,0.02385497,99241.0,99240.0,7.0]
[1736951116476,0.00085497,99241.0,99240.0,7.0]
[1736951117707,0.00085497,99241.0,99240.0,7.10422692]
[1736951118321,0.00085497,99241.0,99240.0,7.10522692]
[1736951119263,0.00085497,99241.0,99240.0,7.10822692]
[1736951119472,0.00085497,99241.0,99240.0,7.10722692]
[1736951119684,0.00085497,99241.0,99240.0,7.10422692]
[1736951119889,0.00085497,99241.0,99240.0,7.11022692]
[1736951120098,0.00085497,99241.0,99240.0,7.10822692]
[1736951120298,0.00085497,99241.0,99240.0,7.11002137]
[1736951120501,0.00085497,99241.0,99240.0,7.11902137]
[1736951121173,0.00085497,99241.0,99240.0,7.01479445]
[1736951123240,0.00085497,99241.0,99240.0,7.11902137]
[1736951123893,0.0008546,99262.0,99256.0,0.1]
[1736951124111,0.0008546,99262.0,99252.0,0.15]
[1736951124112,6e-07,99262.0,99261.0,0.65571592]
[1736951124315,2e-07,99266.0,99265.0,0.35]
[1736951124522,2e-07,99266.0,99265.0,0.45422692]
[1736951125400,2e-07,99266.0,99265.0,0.25422692]
[1736951126877,2e-07,99266.0,99265.0,0.26322692]
[1736951127108,2e-07,99266.0,99265.0,0.25422692]
[1736951127481,9.84e-06,99269.0,99266.0,0.552956]
[1736951127690,9.84e-06,99269.0,99268.0,0.15]
[1736951127955,9.84e-06,99269.0,99268.0,0.25422692]
[1736951128173,9.84e-06,99269.0,99268.0,0.45570092]
[1736951128391,9.84e-06,99269.0,99263.0,0.201484]
[1736951128637,0.023,99267.0,99265.0,0.009]
[1736951128867,9.84e-06,99269.0,99265.0,0.009]
[1736951129096,0.023,99267.0,99265.0,0.009]
[1736951129302,0.224478,99266.0,99265.0,0.014]
[1736951129458,0.32870492,99266.0,99265.0,0.014]
[1736951129659,0.32870492,99266.0,99265.0,0.009]
[1736951129869,0.201506,99253.0,99240.0,7.00179445]
[1736951130070,0.201495,99258.0,99242.0,0.201527]
[1736951130279,0.023,99257.0,99242.0,0.201527]
[1736951130477,0.023,99255.0,99240.0,7.00179445]
[1736951130703,0.023,99252.0,99240.0,7.00179445]
[1736951131263,0.201488,99262.0,99242.0,0.001]
[1736951131469,0.201488,99262.0,99247.0,0.201516]
[1736951131664,0.023,99261.0,99251.0,0.201508]
[1736951131872,0.023,99261.0,99251.0,0.403017]
[1736951132074,0.201478,99267.0,99255.0,0.2015]
[1736951132277,0.201478,99267.0,99251.0,0.201508]
[1736951132720,0.02300984,99269.0,99252.0,0.10422692]
[1736951132896,0.02300984,99269.0,99258.0,0.201494]
[1736951133076,9.84e-06,99269.0,99258.0,0.201494]
[1736951133295,0.0008545,99268.0,99258.0,0.201494]
[1736951134119,0.0008545,99268.0,99240.0,7.00179445]
[1736951134120,0.023,99258.0,99240.0,7.00179445]
[1736951134319,0.023,99258.0,99241.0,0.10422692]
[1736951134723,0.0008545,99268.0,99258.0,0.002]
[1736951134924,0.201486,99263.0,99250.0,0.20151]
[1736951135127,0.201476,99267.0,99240.0,7.00179445]
[1736951135356,0.023,99247.0,99240.0,7.00179445]
[1736951135903,0.0008545,99268.0,99241.0,0.10422692]
[1736951136118,0.201491,99260.0,99241.0,0.10422692]
[1736951136403,0.023,99259.0,99246.0,0.201518]
[1736951136583,0.023,99261.0,99250.0,0.201509]
[1736951136786,0.023,99261.0,99247.0,0.201516]
[1736951137163,0.201476,99267.0,99251.0,0.201508]
[1736951137379,0.201485,99263.0,99249.0,0.201513]
[1736951137559,0.023,99262.0,99249.0,0.30573992]
[1736951137956,0.023,99266.0,99251.0,0.201509]
[1736951138183,0.023,99266.0,99252.0,0.201506]
[1736951138384,0.0008545,99268.0,99253.0,0.10422692]
[1736951138584,0.0008545,99268.0,99261.0,0.201487]
[1736951138788,0.0008545,99268.0,99262.0,0.10422692]
[1736951138991,0.0008545,99268.0,99265.0,0.201478]
[1736951139240,0.0008545,99268.0,99267.0,0.201476]
[1736951139348,0.0008545,99268.0,99267.0,0.30570292]
[1736951140418,0.0008545,99268.0,99267.0,0.30970292]
[1736951140568,0.0008545,99268.0,99267.0,0.30570292]
[1736951140972,0.0008545,99268.0,99267.0,0.31370292]
[1736951141187,0.0008545,99268.0,99267.0,0.30570292]
[1736951141635,0.0008545,99268.0,99267.0,0.31470292]
[1736951142410,0.0008545,99268.0,99267.0,0.31670292]
[1736951142741,0.0008545,99268.0,99267.0,0.30570292]
[1736951142964,0.0008545,99268.0,99267.0,0.31770292]
[1736951144262,0.0008545,99268.0,99267.0,0.30870292]
[1736951144670,0.0008545,99268.0,99267.0,0.31770292]
[1736951144932,0.0008545,99268.0,99267.0,0.31470292]
[1736951145378,0.0008545,99268.0,99267.0,0.31770292]
[1736951145856,0.0008545,99268.0,99267.0,0.30570292]
[1736951146088,0.0008545,99268.0,99267.0,0.31770292]
[1736951146541,0.0008545,99268.0,99267.0,0.30570292]
[1736951146775,0.0008545,99268.0,99267.0,0.31470292]
[1736951146990,0.0008545,99268.0,99267.0,0.31170292]
[1736951147198,0.0008545,99268.0,99267.0,0.32070292]
[1736951147606,0.0008545,99268.0,99267.0,0.31170292]
[1736951148013,0.0008545,99268.0,99267.0,0.11022692]
[1736951148214,0.0008545,99268.0,99267.0,0.10422692]
[1736951148423,0.0008545,99268.0,99267.0,0.10822692]
[1736951149060,0.00058755,99268.0,99267.0,0.11322692]
[1736951149261,0.00058755,99268.0,99267.0,0.10822692]
[1736951149500,0.00058755,99268.0,99267.0,0.10923416]
[1736951149713,0.00058755,99268.0,99267.0,0.11423416]
[1736951150109,0.00058755,99268.0,99267.0,0.10722692]
[1736951150283,0.00058755,99268.0,99267.0,0.11622692]
[1736951150485,0.00058755,99268.0,99267.0,0.012]
[1736951150687,0.00058755,99268.0,99267.0,0.003]
[1736951151109,0.02358755,99268.0,99267.0,0.012]
[1736951151925,0.02358755,99268.0,99267.0,0.009]
[1736951152277,0.02358755,99268.0,99267.0,0.012]
[1736951152495,0.03938914,99268.0,99267.0,0.003]
[1736951152704,0.01638914,99268.0,99267.0,0.009]
[1736951153133,0.00058755,99268.0,99267.0,0.001]
[1736951153538,0.00058755,99268.0,99267.0,0.10822692]
[1736951153767,0.00058755,99268.0,99267.0,0.25822692]
[1736951154006,0.00058755,99268.0,99267.0,0.25522692]
[1736951154457,0.00058755,99268.0,99267.0,0.25722692]
[1736951154784,0.00058755,99268.0,99267.0,0.25822692]
[1736951155197,0.00058755,99268.0,99267.0,0.25722692]
[1736951155635,0.00058755,99268.0,99267.0,0.26022692]
[1736951156232,0.00058755,99268.0,99267.0,0.25722692]
[1736951157123,0.00058755,99268.0,99267.0,0.25422692]
[1736951157329,0.00058755,99268.0,99267.0,0.26322692]
[1736951157501,0.01638757,99268.0,99267.0,0.26322692]
[1736951157709,0.01638757,99268.0,99267.0,0.25722692]
[1736951157862,0.00058755,99268.0,99267.0,0.25722692]
[1736951158071,0.00058755,99268.0,99267.0,0.26502095]
[1736951158276,0.00058755,99268.0,99267.0,0.26802095]
[1736951158857,0.00058755,99268.0,99267.0,0.25902095]
[1736951159324,0.00058755,99268.0,99267.0,0.25602095]
[1736951159936,0.01638728,99268.0,99267.0,0.25602095]
[1736951160339,0.01638728,99268.0,99267.0,0.26502095]
[1736951160764,0.01638728,99268.0,99267.0,0.26902095]
[1736951162087,0.00058755,99268.0,99267.0,0.26902095]
[1736951162491,0.00058755,99268.0,99267.0,0.01479403]
[1736951162697,0.00058755,99268.0,99267.0,0.11902095]
[1736951162927,0.00058755,99268.0,99267.0,0.27002833]
[1736951163139,0.00058755,99268.0,99267.0,0.26902095]
[1736951164200,0.02358755,99268.0,99267.0,0.00179403]
[1736951164407,0.02358755,99268.0,99267.0,0.01479403]
[1736951164408,0.07018755,99268.0,99267.0,0.01479403]
[1736951164604,0.10746982,99268.0,99267.0,0.00579403]
[1736951164806,0.07018755,99268.0,99267.0,0.00179403]
[1736951165012,0.07018755,99268.0,99267.0,0.01079403]
[1736951165220,0.07018755,99268.0,99267.0,0.01579403]
[1736951165419,0.07018755,99268.0,99267.0,0.00679403]
[1736951166716,0.07018755,99268.0,99267.0,0.00979403]
[1736951167284,0.07018755,99268.0,99267.0,0.00479403]
[1736951167479,0.03939003,99268.0,99267.0,0.00479403]
[1736951168066,0.06793637,99268.0,99267.0,0.00479403]
[1736951168272,0.06793637,99268.0,99251.0,0.00179403]
[1736951168273,0.224507,99252.0,99251.0,0.00179403]
[1736951169393,0.32873392,99252.0,99251.0,0.00179403]
[1736951169614,0.50443392,99252.0,99251.0,0.00179403]
[1736951170225,0.50843392,99252.0,99251.0,0.00179403]
[1736951170433,0.50843392,99252.0,99217.0,0.201577]
[1736951170434,0.201529,99241.0,99207.0,0.201598]
[1736951170661,0.47535592,99241.0,99207.0,0.201597]
[1736951170864,0.47535592,99241.0,99211.0,0.201588]
[1736951171290,0.47535592,99241.0,99207.0,0.201597]
[1736951171498,0.47535592,99241.0,99211.0,0.201589]
[1736951172130,0.48235592,99241.0,99240.0,7.00279445]
[1736951173586,0.49232923,99241.0,99240.0,7.00279445]
[1736951173787,0.84186665,99241.0,99240.0,7.00279445]
[1736951174459,0.59232923,99241.0,99240.0,7.00279445]
[1736951174866,0.21850231,99241.0,99240.0,7.00279445]
[1736951175097,0.007,99241.0,99240.0,7.00279445]
[1736951176658,0.12722692,99241.0,99240.0,7.00179445]
[1736951176865,0.37722692,99241.0,99240.0,7.00179445]
[1736951177073,0.69055411,99241.0,99240.0,7.00279445]
[1736951177281,0.68755411,99241.0,99240.0,7.00179445]
[1736951177500,0.68755411,99241.0,99240.0,6.98879443]
[1736951178132,0.60252692,99241.0,99240.0,6.98879443]
[1736951178549,0.59952692,99241.0,99240.0,6.98879443]
[1736951178964,0.49952692,99241.0,99240.0,6.98879443]
[1736951179184,0.59952692,99241.0,99240.0,6.98879443]
[1736951179401,0.49952692,99241.0,99240.0,6.98879443]
[1736951179610,0.38444692,99241.0,99240.0,6.98879443]
[1736951180034,0.58444692,99241.0,99240.0,6.98879443]
[1736951180235,0.26044692,99241.0,99240.0,6.98979443]
[1736951180434,0.0757,99241.0,99240.0,6.98879443]
[1736951180655,0.403052,99243.0,99240.0,6.98879443]
[1736951180876,0.003,99241.0,99240.0,6.98979443]
[1736951181077,0.003,99241.0,99240.0,6.98879443]
[1736951181631,0.006,99241.0,99240.0,6.98879443]
[1736951181889,0.224529,99241.0,99240.0,6.98879443]
[1736951182085,0.2253835,99241.0,99240.0,6.98879443]
[1736951182526,0.0008545,99241.0,99240.0,6.98979443]
[1736951183781,0.0008545,99241.0,99240.0,0.00279445]
[1736951184319,0.0008545,99241.0,99240.0,0.10702137]
[1736951184729,0.0008545,99241.0,99240.0,0.10602137]
[1736951184958,0.0038545,99241.0,99240.0,0.10602137]
[1736951185161,0.0008545,99241.0,99240.0,0.10602137]
[1736951185540,0.0008545,99241.0,99240.0,0.11402137]
[1736951185753,0.0008545,99241.0,99240.0,0.10602137]
[1736951186164,0.0008545,99241.0,99240.0,0.11502137]
[1736951186377,0.0008545,99241.0,99240.0,0.11602895]
[1736951186772,0.0008545,99241.0,99240.0,0.11502137]
[1736951187407,0.0008545,99241.0,99240.0,0.10802137]
[1736951187889,0.0008545,99241.0,99240.0,0.11702137]
[1736951188133,0.0008545,99241.0,99240.0,0.11502137]
[1736951188350,0.0008545,99241.0,99240.0,0.01379445]
[1736951188560,0.0008545,99241.0,99240.0,0.11802137]
[1736951188804,0.0008545,99241.0,99240.0,0.26802137]
[1736951195574,0.0008945,99241.0,99240.0,0.26802137]
[1736951198299,0.0008945,99241.0,99240.0,0.36802137]
[1736951198507,0.0008945,99241.0,99240.0,0.44073504]
[1736951199092,0.0008945,99241.0,99240.0,0.34073504]
[1736951199688,0.0008945,99241.0,99240.0,0.24573504]
[1736951199888,0.0008945,99241.0,99240.0,0.25473504]
[1736951200429,0.0008945,99241.0,99240.0,0.24973504]
[1736951200637,0.0008945,99241.0,99240.0,0.25573504]
[1736951201061,0.0008945,99241.0,99240.0,0.24973504]
[1736951201267,0.0008945,99241.0,99240.0,0.25273504]
[1736951201668,0.0008945,99241.0,99240.0,0.24373504]
[1736951202110,0.0018945,99241.0,99240.0,0.25273504]
[1736951202253,0.0018945,99241.0,99240.0,0.24373504]
[1736951202450,0.0028945,99241.0,99240.0,0.24973504]
[1736951202883,0.0028945,99241.0,99240.0,0.25073504]
[1736951203305,0.0028945,99241.0,99240.0,0.24973504]
[1736951203537,0.0028945,99241.0,99240.0,0.27007175]
[1736951203852,0.0028945,99241.0,99240.0,0.27407175]
[1736951204993,0.0028945,99241.0,99240.0,0.2758662]
[1736951207743,0.0028945,99241.0,99240.0,0.25552949]
[1736951208128,0.0028945,99241.0,99240.0,0.28043766]
[1736951209387,0.0028945,99241.0,99240.0,0.03970262]
[1736951210423,0.0008945,99241.0,99240.0,0.03070262]
[1736951210628,0.0018945,99241.0,99240.0,0.03370262]
[1736951212559,0.0008945,99241.0,99240.0,0.02870262]
[1736951212909,0.0008945,99241.0,99240.0,0.03370262]
[1736951213078,0.0008945,99241.0,99240.0,0.02670262]
[1736951213504,0.0008945,99241.0,99240.0,0.02870262]
[1736951213837,0.0008945,99241.0,99240.0,0.02670262]
[1736951214244,0.0018945,99241.0,99240.0,0.02770262]
[1736951214425,0.0018945,99241.0,99240.0,0.02670262]
[1736951214927,0.0018945,99241.0,99240.0,0.13092954]
[1736951215405,0.0008945,99241.0,99240.0,0.13092954]
[1736951216671,0.0018945,99241.0,99240.0,0.14192954]
[1736951216910,0.0008945,99241.0,99240.0,0.13092954]
[1736951217174,0.0008945,99241.0,99240.0,0.13292954]
[1736951217645,0.0008945,99241.0,99240.0,0.02870262]
[1736951217888,0.0008945,99241.0,99240.0,0.03470262]
[1736951218572,0.0008945,99241.0,99240.0,0.03270262]
[1736951219027,0.0008945,99241.0,99240.0,0.03470262]
[1736951219506,0.0008945,99241.0,99240.0,0.02670262]
[1736951219761,0.0008945,99241.0,99240.0,0.03370262]
[1736951220242,0.0018945,99241.0,99240.0,0.03370262]
[1736951220244,0.0008945,99241.0,99240.0,0.02670262]
[1736951220474,0.21082142,99241.0,99240.0,0.02870262]
[1736951220689,0.201549,99231.0,99230.0,0.02584284]
[1736951220929,0.66147592,99231.0,99230.0,0.02584284]
[1736951221160,0.76147592,99231.0,99230.0,0.02584284]
[1736951221587,0.35,99228.0,99221.0,0.02677752]
[1736951221816,0.66415384,99228.0,99221.0,0.02677752]
[1736951222455,0.67404539,99228.0,99221.0,0.02677752]
[1736951222885,0.65304539,99228.0,99221.0,0.02677752]
[1736951223099,0.301568,99222.0,99221.0,0.00662052]
[1736951223309,0.65579492,99222.0,99221.0,0.00662052]
[1736951223540,0.76002184,99222.0,99221.0,0.00662052]
[1736951224417,0.76002184,99222.0,99221.0,5.2e-07]
[1736951224626,0.76002184,99222.0,99211.0,0.02771219]
[1736951224627,0.630788,99212.0,99211.0,0.02771219]
[1736951224853,0.401606,99203.0,99202.0,0.00215248]
[1736951225113,0.401606,99203.0,99202.0,4.8e-07]
[1736951225114,0.73503292,99203.0,99202.0,4.8e-07]
[1736951225324,0.73503292,99203.0,99173.0,0.03145087]
[1736951225325,0.301627,99193.0,99173.0,0.03145087]
[1736951225535,0.46965392,99193.0,99173.0,0.03145087]
[1736951225966,0.551647,99183.0,99173.0,0.03145087]
[1736951226199,0.70237392,99183.0,99182.0,0.03101512]
[1736951226444,0.72788489,99183.0,99182.0,0.03101512]
[1736951226870,0.80708489,99183.0,99182.0,0.03101512]
[1736951227285,0.84550391,99183.0,99182.0,0.03101512]
[1736951227756,0.84550391,99183.0,99182.0,0.0180151]
[1736951227973,1.05918091,99183.0,99182.0,0.0180151]
[1736951228184,1.05918091,99183.0,99182.0,0.00475904]
[1736951228401,1.06318091,99183.0,99182.0,4e-08]
[1736951228609,0.84950391,99183.0,99182.0,4e-08]
[1736951229026,0.84645928,99183.0,99182.0,4e-08]
[1736951229237,0.85145928,99183.0,99182.0,4e-08]
[1736951229449,0.86045928,99183.0,99182.0,4e-08]
[1736951229672,0.82204026,99183.0,99182.0,4e-08]
[1736951229897,0.80440929,99183.0,99182.0,4e-08]
[1736951230110,0.81340929,99183.0,99182.0,4e-08]
[1736951231186,0.80840929,99183.0,99182.0,4e-08]
[1736951231397,0.81340929,99183.0,99182.0,4e-08]
[1736951231666,0.91491452,99183.0,99182.0,4e-08]
[1736951231882,0.90991452,99183.0,99182.0,4e-08]
[1736951232090,0.79940929,99183.0,99182.0,4e-08]
[1736951232299,0.80440929,99183.0,99182.0,4e-08]
[1736951232494,0.81340929,99183.0,99182.0,4e-08]
[1736951232697,0.301665,99174.0,99173.0,0.01845089]
[1736951232922,0.40589192,99174.0,99173.0,0.01860044]
[1736951233131,0.47664721,99174.0,99173.0,0.01860044]
[1736951233768,0.201665,99174.0,99173.0,0.01860044]
[1736951233974,0.03295537,99183.0,99173.0,0.01860044]
[1736951234181,0.018,99183.0,99179.0,0.201655]
[1736951234612,0.018,99183.0,99180.0,0.00490917]
[1736951235235,0.201643,99185.0,99173.0,0.22026744]
[1736951235506,0.201649,99182.0,99173.0,0.01860044]
[1736951235711,0.008,99174.0,99173.0,0.01860044]
[1736951235915,0.201664,99175.0,99173.0,0.01860044]
[1736951236782,0.001,99174.0,99173.0,0.01960044]
[1736951237201,0.201638,99188.0,99173.0,0.01860044]
[1736951237202,0.01007207,99185.0,99173.0,0.01860044]
[1736951237422,0.17700392,99183.0,99173.0,0.01860044]
[1736951237631,0.0388714,99182.0,99173.0,0.01860044]
[1736951237840,0.201651,99181.0,99173.0,0.01860044]
[1736951238279,0.201651,99181.0,99174.0,0.00483889]
[1736951239097,0.201631,99191.0,99174.0,0.00483889]
[1736951239367,0.201621,99196.0,99174.0,0.00483889]
[1736951239368,0.201621,99196.0,99183.0,0.201646]
[1736951239584,0.17600392,99190.0,99174.0,0.00483889]
[1736951239798,0.201646,99184.0,99174.0,0.00583889]
[1736951240019,0.17600392,99190.0,99173.0,0.01860044]
[1736951240020,0.201635,99189.0,99173.0,0.02039615]
[1736951240246,0.403316,99178.0,99173.0,0.02039615]
[1736951240450,0.403322,99176.0,99173.0,0.02039615]
[1736951242370,0.201665,99174.0,99173.0,0.02039615]
[1736951242571,0.50589192,99174.0,99173.0,0.02039615]
[1736951242933,0.30589192,99174.0,99173.0,0.02039615]
[1736951244057,0.41089192,99174.0,99173.0,0.02039615]
[1736951244251,0.61135248,99174.0,99173.0,0.02039615]
[1736951244459,0.60735248,99174.0,99173.0,0.02039615]
[1736951244661,0.61035248,99174.0,99173.0,0.02039615]
[1736951245040,0.30889192,99174.0,99173.0,0.02039615]
[1736951245249,0.31089192,99174.0,99173.0,0.02039615]
[1736951245893,0.30889192,99174.0,99173.0,0.02039615]
[1736951246130,0.30989192,99174.0,99173.0,0.02039615]
[1736951246554,0.30689192,99174.0,99173.0,0.02039615]
[1736951247570,0.3332356,99174.0,99173.0,0.02039615]
[1736951247771,0.30689192,99174.0,99173.0,0.02039615]
[1736951247974,0.207665,99174.0,99173.0,0.02039615]
[1736951248539,0.006,99174.0,99173.0,0.02039615]
[1736951249043,0.005,99174.0,99173.0,0.02039615]
[1736951249371,0.009,99174.0,99173.0,0.02039615]
[1736951249764,0.001,99174.0,99173.0,0.02039615]
[1736951250255,0.003,99174.0,99173.0,0.02039615]
[1736951250492,0.001,99174.0,99173.0,0.02039615]
[1736951250935,0.10422692,99174.0,99173.0,0.02039615]
[1736951251051,0.30422692,99174.0,99173.0,0.02239615]
[1736951251291,0.62877909,99174.0,99173.0,1.5e-07]
[1736951251518,0.62877909,99174.0,99163.0,0.03238554]
[1736951251519,0.401686,99164.0,99163.0,0.03238554]
[1736951251730,0.50591292,99164.0,99163.0,0.03249116]
[1736951252964,0.52891292,99164.0,99163.0,0.03249116]
[1736951253793,0.53791292,99164.0,99163.0,0.03249116]
[1736951253996,0.53791292,99164.0,99163.0,0.01232216]
[1736951254201,0.60287241,99164.0,99163.0,1.6e-07]
[1736951254405,0.51491292,99164.0,99163.0,1.6e-07]
[1736951254624,0.66491292,99164.0,99163.0,1.6e-07]
[1736951254824,0.67091292,99164.0,99163.0,1.6e-07]
[1736951256097,0.66191292,99164.0,99163.0,1.6e-07]
[1736951256277,0.67091292,99164.0,99163.0,1.6e-07]
[1736951256483,0.75817241,99164.0,99163.0,1.6e-07]
[1736951256653,0.2,99155.0,99154.0,0.03328038]
[1736951256862,0.2,99155.0,99154.0,0.01321501]
[1736951256863,0.65593092,99155.0,99154.0,0.01321501]
[1736951257075,0.74953401,99155.0,99154.0,0.01321501]
[1736951258061,0.76253401,99155.0,99154.0,0.01321501]
[1736951258672,0.75853401,99155.0,99154.0,0.01321501]
[1736951258876,0.76353401,99155.0,99154.0,0.01321501]
[1736951259937,0.75453401,99155.0,99154.0,0.01321501]
[1736951260133,0.76353401,99155.0,99154.0,1e-08]
[1736951260341,0.76353401,99155.0,99134.0,0.03518956]
[1736951260342,0.373,99141.0,99134.0,0.03518956]
[1736951260548,0.574763,99126.0,99125.0,0.01989782]
[1736951260753,0.574763,99126.0,99115.0,0.0370589]